[Event "WEM-KT 2018"]
[Site "Illertissen"]
[Date "2018.09.01"]
[Round "8"]
[White "Maisch, Julian"]
[Black "Anistratov, Dmitriy"]
[Result "0-1"]
[ECO "C41"]
[WhiteElo "2216"]
[BlackElo "2279"]
[Annotator "NA"]
[PlyCount "62"]
[EventDate "2018.08.25"]
[EventType "tourn"]
[EventCountry "GER"]
[SourceTitle "playchess.com"]
[Source "ChessBase"]
[SourceQuality "1"]
[TimeControl "40/6000+30:3000+30"]

1. e4 {[%emt 0:09:33]} d6 {[%emt 0:09:36]} 2. d4 {[%emt 0:00:04]} Nf6 {[%emt 0:00:03]} 3. Nc3 {[%emt 0:00:04]} e5 {[%emt 0:00:06]} 4. Nf3 {[%emt 0:00:04]} Nbd7 {[%emt 0:00:06]} 5. Bc4 {[%emt 0:03:12]} Be7 {[%emt 0:00:13] LiveBook: 7187 Games} 6. O-O {[%emt 0:01:04]} O-O {[%emt 0:00:03]} 7. Qe2 {[%emt 0:02:48]} c6 {[%emt 0:00:39]} 8. d5 {[%emt 0:03:48] C41: Philidor Defence} (8. a4 exd4 9. Nxd4 Re8 10. Ba2 Bf8 11. f3 d5 12. Qf2 c5 13. Nf5 d4 14. Nd5 Nxd5 15. Qg3 Ne5 16. Nh6+ Kh8 17. Qxe5 {1-0 (17) Savchenko,B (2638)-Yudin,S (2573) Moscow 2010}) 8... Qc7 {[%emt 0:02:26]} 9. Rd1 {[%emt 0:03:27]} Nb6 $146 {[%emt 0:09:36]} ({Predecessor:} 9... b5 10. Bb3 b4 11. dxc6 bxc3 12. cxd7 Bxd7 13. bxc3 Qxc3 14. Ba3 Qc6 15. Nxe5 dxe5 16. Bxe7 Nxe4 17. Bxf8 Nc3 18. Qxe5 Nxd1 19. Qxg7# {1-0 (19) Usarova,E (1522)-Dziendziel,M (1246) Liptovsky Mikulas 2017}) 10. Bb3 {[%emt 0:02:30]} cxd5 {[%emt 0:01:48]} 11. exd5 {[%emt 0:04:34]} a6 {[%emt 0:15:04]} 12. h3 {[%emt 0:11:54]} Nbd7 {[%emt 0:07:05]} 13. Nh2 {[%emt 0:02:04]} Nc5 {[%emt 0:00:55]} 14. Ng4 {[%emt 0:01:47]} Nxg4 {[%emt 0:02:34]} 15. hxg4 {[%emt 0:02:39]} f5 {[%emt 0:00:35]} 16. gxf5 {[%emt 0:01:04]} Bxf5 {[%emt 0:00:11]} 17. Be3 {[%emt 0:02:33]} Rf6 {[%emt 0:06:54]} 18. Bc4 {[%emt 0:10:23]} Raf8 $17 {[%emt 0:05:32]} 19. f3 {[%emt 0:18:03]} Rg6 {[%emt 0:02:07]} 20. Kh1 {[%emt 0:09:23]} e4 {[%emt 0:11:43]} 21. Rd4 {[%emt 0:06:56]} b5 {[%emt 0:09:27]} 22. Bb3 {[%emt 0:01:42]} exf3 {[%emt 0:03:49]} 23. gxf3 {[%emt 0:00:01]} Bf6 {[%emt 0:00:28]} 24. Rdd1 {[%emt 0:02:48]} Be5 {[%emt 0:01:10]} 25. Rg1 {[%emt 0:03:09]} Bg3 {[%emt 0:01:07]} 26. Rg2 {[%emt 0:02:19]} Bh3 {[%emt 0:01:30]} 27. Rag1 {[%emt 0:00:42]} Bxg2+ {[%emt 0:00:11]} 28. Rxg2 {[%emt 0:00:01]} Re8 {[%emt 0:01:35]} 29. Ne4 {[%emt 0:01:20]} Nxe4 {[%emt 0:00:37]} 30. fxe4 {[%emt 0:00:01]} Rxe4 {[%emt 0:00:29]} 31. Qf3 {[%emt 0:00:26]} Qe7 {[%emt 0:00:49]} 0-1

[Event "WEM-KT 2018"]
[Site "Illertissen"]
[Date "2018.09.01"]
[Round "8"]
[White "Schulz, Volker"]
[Black "Kohde, Janis"]
[Result "0-1"]
[ECO "C55"]
[WhiteElo "2169"]
[BlackElo "1803"]
[Annotator "NA"]
[PlyCount "95"]
[EventDate "2018.08.25"]
[EventType "tourn"]
[EventCountry "GER"]
[SourceTitle "playchess.com"]
[Source "ChessBase"]
[SourceQuality "1"]
[TimeControl "40/6000+30:3000+30"]

1. e4 {[%emt 0:09:32]} Nf6 {[%emt 0:09:38]} 2. Nc3 {[%emt 0:00:51]} e5 {[%emt 0:00:30]} 3. Nf3 {[%emt 0:00:23]} Nc6 {[%emt 0:00:06]} 4. Bc4 {[%emt 0:02:09]} Nxe4 {[%emt 0:00:10]} 5. Nxe4 {[%emt 0:00:10]} d5 {[%emt 0:00:02]} 6. Qe2 {[%emt 0:03:00]} dxc4 {[%emt 0:02:47]} 7. Qxc4 {[%emt 0:00:10]} Be7 {[%emt 0:01:32]} 8. Qb5 {[%emt 0:03:59]} O-O {[%emt 0:02:50]} 9. O-O {[%emt 0:02:05]} f5 {[%emt 0:08:59]} 10. Nc3 {[%emt 0:03:47]} e4 {[%emt 0:02:51]} 11. Ne5 {[%emt 0:01:24] [#]} Nd4 $1 {[%emt 0:06:17]} 12. Qa4 {[%emt 0:00:56]} Rf6 {[%emt 0:05:24]} (12... c6 $142 13. Nxc6 bxc6) 13. Nb5 {[%emt 0:02:22]} Ne2+ {[%emt 0:17:14]} 14. Kh1 {[%emt 0:00:04]} Be6 {[%emt 0:02:43]} 15. d3 $19 {[%emt 0:07:50]} Qd5 {[%emt 0:08:20]} 16. Nc4 {[%emt 0:19:27]} exd3 {[%emt 0:03:17]} 17. Nxc7 {[%emt 0:04:18]} Qxc4 {[%emt 0:00:18]} 18. Qxc4 {[%emt 0:00:09]} Bxc4 {[%emt 0:00:07]} 19. Nxa8 {[%emt 0:00:06]} Nxc1 {[%emt 0:05:58]} 20. Rfxc1 {[%emt 0:00:26]} d2 {[%emt 0:00:35]} 21. Rd1 {[%emt 0:03:29]} Rd6 {[%emt 0:03:09]} 22. g3 {[%emt 0:10:24]} Be2 {[%emt 0:05:50]} 23. Nc7 {[%emt 0:01:13]} Kf7 {[%emt 0:02:20]} 24. a4 {[%emt 0:02:47]} a6 {[%emt 0:02:46]} 25. a5 {[%emt 0:09:21]} Bd8 {[%emt 0:02:04]} 26. Na8 {[%emt 0:00:12]} Bxd1 {[%emt 0:00:11]} 27. Rxd1 {[%emt 0:00:02]} Bxa5 {[%emt 0:00:11]} 28. c3 {[%emt 0:00:20]} Ke7 {[%emt 0:00:31]} 29. b4 {[%emt 0:00:24]} Bd8 {[%emt 0:00:12]} 30. c4 {[%emt 0:00:14]} Kd7 {[%emt 0:00:54]} 31. c5 {[%emt 0:00:41]} Rd5 {[%emt 0:00:28]} 32. Kg2 {[%emt 0:00:08]} Kc8 {[%emt 0:01:10]} 33. Kf3 {[%emt 0:00:21]} Kb8 {[%emt 0:00:22]} 34. Nb6 {[%emt 0:00:51]} Bxb6 {[%emt 0:00:12]} 35. cxb6 {[%emt 0:00:04]} Kc8 {[%emt 0:00:11]} 36. h3 {[%emt 0:09:44]} Kd7 {[%emt 0:00:12]} 37. Ke3 {[%emt 0:00:53]} Kc6 {[%emt 0:00:06]} 38. Rxd2 {[%emt 0:00:06]} Rxd2 {[%emt 0:00:01]} 39. Kxd2 {[%emt 0:00:07]} Kxb6 {[%emt 0:00:07]} 40. g4 {[%emt 0:00:51]} f4 {[%emt 0:02:36]} 41. Kc3 {[%emt 0:50:42]} Kb5 {[%emt 0:50:23]} 42. Kb3 {[%emt 0:00:13]} b6 {[%emt 0:00:14]} 43. h4 {[%emt 0:00:20]} a5 {[%emt 0:00:16]} 44. bxa5 {[%emt 0:00:05]} bxa5 {[%emt 0:00:01]} 45. g5 {[%emt 0:01:49]} a4+ {[%emt 0:00:17]} 46. Ka3 {[%emt 0:00:05]} Kc4 {[%emt 0:00:57]} 47. h5 {[%emt 0:00:29]} Kd3 {[%emt 0:00:07]} 48. g6 {[%emt 0:00:17]} 0-1

[Event "WEM-KT 2018"]
[Site "Illertissen"]
[Date "2018.09.01"]
[Round "8"]
[White "Engelhart, Achim, Dr."]
[Black "Guenther, Stefan"]
[Result "1/2-1/2"]
[ECO "B09"]
[WhiteElo "2126"]
[BlackElo "1907"]
[Annotator "NA"]
[PlyCount "83"]
[EventDate "2018.08.25"]
[EventType "tourn"]
[EventCountry "GER"]
[SourceTitle "playchess.com"]
[Source "ChessBase"]
[SourceQuality "1"]
[TimeControl "40/6000+30:3000+30"]

1. e4 {[%emt 0:09:32]} d6 {[%emt 0:09:49]} 2. d4 {[%emt 0:00:07]} Nf6 {[%emt 0:00:06]} 3. Nc3 {[%emt 0:00:07]} g6 {[%emt 0:00:07]} 4. f4 {[%emt 0:00:06]} Bg7 {[%emt 0:00:55]} 5. Nf3 {[%emt 0:00:06]} c5 {[%emt 0:00:36]} 6. Bb5+ {[%emt 0:00:07]} Bd7 {[%emt 0:00:30]} 7. e5 {[%emt 0:00:15] LiveBook: 688 Games} Ng4 {[%emt 0:01:43]} 8. Bxd7+ {[%emt 0:00:33]} Qxd7 {[%emt 0:00:32]} 9. h3 {[%emt 0:00:09] B09: Pirc-Ufimzew-Verteidigung (Dreibauernangriff)} (9. d5 dxe5 10. h3 e4 11. Nxe4 Nf6 12. Nxf6+ Bxf6 13. O-O O-O 14. c4 e6 15. Be3 exd5 16. cxd5 Rd8 17. Qc2 Na6 18. Rad1 Nb4 19. Qxc5 Nxd5 20. Bd4 Rac8 21. Qa3 Qf5 22. Bxf6 Qxf6 23. Qxa7 Nxf4 24. Rxd8+ Rxd8 {½-½ (51) Mamedov,R (2704)-Carlsen,M (2843) Shamkir 2018}) 9... cxd4 {[%emt 0:00:41]} 10. Qxd4 {[%emt 0:00:09]} Nc6 {[%emt 0:01:03]} 11. Qe4 {[%emt 0:00:25]} Nh6 {[%emt 0:04:46]} 12. g4 {[%emt 0:00:50]} O-O-O {[%emt 0:07:53]} 13. Qe2 {[%emt 0:04:06]} dxe5 {[%emt 0:01:10]} 14. fxe5 {[%emt 0:00:07]} Qe6 {[%emt 0:16:30]} 15. Bd2 {[%emt 0:06:10]} Nxe5 $146 {[%emt 0:00:24]} ({Vorgänger:} 15... f6 16. O-O-O Nf7 {1-0 (76) Cuenca Jimenez,J (2516)-Valdes Romero,L (2362) Berlin 2015}) ({Black should play} 15... f5 $11) 16. Nxe5 {[%emt 0:00:39]} Rxd2 {[%emt 0:07:20]} 17. Kxd2 {[%emt 0:21:02]} Bxe5 {[%emt 0:00:52]} 18. Kc1 {[%emt 0:05:15]} f5 {[%emt 0:04:55]} 19. Re1 {[%emt 0:11:47]} Nf7 {[%emt 0:03:30]} 20. a4 {[%emt 0:01:02]} Rd8 $16 {[%emt 0:06:58]} ({Lieber} 20... Bf4+ $14 21. Kb1 Qxe2 22. Rxe2 (22. Nxe2 Bd6 $14) 22... Be5) 21. a5 {[%emt 0:05:37]} Rd4 {[%emt 0:07:17]} 22. a6 {[%emt 0:03:24]} Bf4+ {[%emt 0:02:02]} 23. Kb1 {[%emt 0:00:15]} Qxe2 {[%emt 0:00:05]} 24. axb7+ {[%emt 0:01:11]} Kxb7 {[%emt 0:01:21]} 25. Rxe2 {[%emt 0:04:30]} e5 {[%emt 0:00:28]} 26. Ra4 {[%emt 0:02:18]} Rxa4 {[%emt 0:03:09]} 27. Nxa4 {[%emt 0:00:01]} Kc6 {[%emt 0:02:59]} 28. c4 {[%emt 0:01:27]} Ng5 {[%emt 0:00:43]} 29. gxf5 {[%emt 0:06:50]} gxf5 {[%emt 0:00:34]} 30. b4 {[%emt 0:01:32]} e4 {[%emt 0:04:47]} 31. Nc3 {[%emt 0:01:57]} Be5 {[%emt 0:05:50]} 32. h4 {[%emt 0:08:09]} Bxc3 {[%emt 0:00:49]} 33. hxg5 {[%emt 0:00:06]} Bxb4 {[%emt 0:00:34]} 34. Kc2 {[%emt 0:02:09]} Bd6 {[%emt 0:05:03]} 35. Re1 {[%emt 0:01:51]} Kc5 {[%emt 0:01:47]} 36. Rh1 {[%emt 0:01:13]} Bf4 {[%emt 0:03:58]} 37. Rf1 {[%emt 0:08:15]} Be3 {[%emt 0:00:15]} 38. Rxf5+ {[%emt 0:00:04]} Kxc4 {[%emt 0:00:13]} 39. Re5 {[%emt 0:03:06]} Kd4 {[%emt 0:01:08]} 40. Ra5 {[%emt 0:00:09]} Kc4 {[%emt 0:01:45]} 41. Re5 {[%emt 0:50:58]} Kd4 {[%emt 0:51:26]} 42. Ra5 {[%emt 0:00:03]} 1/2-1/2

[Event "WEM-KT 2018"]
[Site "Illertissen"]
[Date "2018.09.01"]
[Round "8"]
[White "Jakob, Georg"]
[Black "Bossinger, Patrick"]
[Result "0-1"]
[ECO "C90"]
[WhiteElo "2084"]
[BlackElo "2039"]
[Annotator "NA"]
[PlyCount "52"]
[EventDate "2018.08.25"]
[EventType "tourn"]
[EventCountry "GER"]
[SourceTitle "playchess.com"]
[Source "ChessBase"]
[SourceQuality "1"]
[TimeControl "40/6000+30:3000+30"]

1. e4 {[%emt 0:09:32]} e5 {[%emt 0:09:43]} 2. Nf3 {[%emt 0:00:04]} Nc6 {[%emt 0:00:07]} 3. Bb5 {[%emt 0:00:07]} a6 {[%emt 0:00:10]} 4. Ba4 {[%emt 0:00:04]} Nf6 {[%emt 0:00:06]} 5. O-O {[%emt 0:00:23]} b5 {[%emt 0:00:23]} 6. Bb3 {[%emt 0:00:05]} Be7 {[%emt 0:00:15]} 7. Re1 {[%emt 0:00:17]} O-O {[%emt 0:00:13]} 8. d3 {[%emt 0:00:04]} d6 {[%emt 0:01:03]} 9. c3 {[%emt 0:00:06]} Na5 {[%emt 0:00:08]} 10. Bc2 {[%emt 0:00:06]} c5 {[%emt 0:00:11]} 11. Nbd2 {[%emt 0:00:04]} Re8 {[%emt 0:00:39] LiveBook: 622 Games} 12. Nf1 {[%emt 0:00:20]} Bf8 {[%emt 0:00:48]} 13. Ne3 {[%emt 0:02:49]} g6 {[%emt 0:02:54]} 14. h3 {[%emt 0:01:40]} Bg7 {[%emt 0:00:30] C90: Spanische Partie (Abweichungen von der Hauptvariante)} (14... Nc6 15. Nh2 Be6 16. Qf3 Bg7 17. Nhg4 Nxg4 18. hxg4 f6 19. g3 Ne7 20. Bb3 Qd7 21. Kg2 a5 22. Bxe6+ Qxe6 23. Rh1 Rf8 24. Rh2 Rf7 {0-1 (43) Gomez,J (2519)-Efimenko,Z (2680) Al Ain 2008}) 15. a3 {[%emt 0:17:22]} Qc7 $146 {[%emt 0:05:32]} ({Vorgänger:} 15... Ra7 16. b4 Nc6 17. Nd5 Nxd5 18. exd5 Ne7 19. Bb3 {1-0 (19) Miranda,R (2085)-Olivera,H (2243) Buenos Aires 2013}) 16. Nh2 {[%emt 0:10:17]} Bb7 {[%emt 0:09:37]} 17. b4 {[%emt 0:02:40]} Nc6 {[%emt 0:06:30]} 18. Nhg4 {[%emt 0:00:34]} Nxg4 {[%emt 0:03:26]} 19. hxg4 {[%emt 0:01:56]} Ne7 $11 {[%emt 0:03:35]} 20. Qf3 {[%emt 0:11:45]} cxb4 {[%emt 0:04:42]} 21. cxb4 {[%emt 0:04:19]} Qc3 {[%emt 0:03:23]} 22. Bd2 {[%emt 0:11:54]} Qxd2 {[%emt 0:00:23]} 23. Bb3 {[%emt 0:00:47]} Rf8 {[%emt 0:03:26]} 24. Rec1 {[%emt 0:01:15]} Rac8 {[%emt 0:03:08]} 25. Bc4 {[%emt 0:02:39]} bxc4 {[%emt 0:02:52]} 26. Rc2 {[%emt 0:01:53]} Qxd3 {[%emt 0:00:54]} 0-1

[Event "WEM-KT 2018"]
[Site "Illertissen"]
[Date "2018.09.01"]
[Round "8"]
[White "Wolf, Rainer"]
[Black "Gustain, Marc"]
[Result "0-1"]
[ECO "A06"]
[WhiteElo "2044"]
[BlackElo "2102"]
[Annotator "NA"]
[PlyCount "52"]
[EventDate "2018.08.25"]
[EventType "tourn"]
[EventCountry "GER"]
[SourceTitle "playchess.com"]
[Source "ChessBase"]
[SourceQuality "1"]
[TimeControl "40/6000+30:3000+30"]

1. Nf3 {[%emt 0:09:39]} d5 {[%emt 0:09:39]} 2. e3 {[%emt 0:01:28]} Nf6 {[%emt 0:00:30]} 3. Be2 {[%emt 0:01:21]} Bg4 {[%emt 0:04:29]} 4. c4 {[%emt 0:05:32]} dxc4 {[%emt 0:03:04]} 5. Bxc4 {[%emt 0:02:33]} e6 {[%emt 0:02:09]} 6. Nc3 {[%emt 0:06:34]} Nbd7 {[%emt 0:01:31]} 7. d4 {[%emt 0:05:15]} Bd6 {[%emt 0:05:22]} 8. Be2 {[%emt 0:15:28]} O-O {[%emt 0:03:58]} 9. O-O {[%emt 0:04:04]} a6 {[%emt 0:04:08]} 10. Qd3 {[%emt 0:10:32]} Qe7 {[%emt 0:09:51]} 11. e4 {[%emt 0:09:23]} e5 {[%emt 0:02:29]} 12. Bg5 {[%emt 0:05:38]} exd4 {[%emt 0:07:41]} 13. Nd5 $17 {[%emt 0:02:40]} (13. Qxd4 $11 Bc5 14. Qd2) 13... Qxe4 {[%emt 0:03:39]} 14. Bxf6 {[%emt 0:14:32]} Qxd3 {[%emt 0:05:07]} 15. Bxd3 {[%emt 0:00:07]} Nxf6 {[%emt 0:03:38]} 16. Nxf6+ {[%emt 0:00:24]} gxf6 {[%emt 0:00:07]} 17. Nxd4 {[%emt 0:05:51]} Rad8 {[%emt 0:01:33]} 18. Bc2 {[%emt 0:01:07]} Bxh2+ {[%emt 0:01:26]} 19. Kxh2 {[%emt 0:00:28]} Rxd4 {[%emt 0:00:18]} 20. f3 {[%emt 0:00:37]} Be6 {[%emt 0:02:35]} 21. Kg3 {[%emt 0:00:49]} Kg7 {[%emt 0:04:27]} 22. a3 {[%emt 0:01:04]} Rd2 {[%emt 0:00:34]} 23. Rac1 {[%emt 0:00:38]} c6 {[%emt 0:00:31]} 24. Rh1 {[%emt 0:01:28]} h6 {[%emt 0:00:22]} 25. Rhd1 {[%emt 0:01:58]} Rfd8 {[%emt 0:00:21]} 26. Kf4 {[%emt 0:00:15]} Rxc2 {[%emt 0:00:47]} 0-1

[Event "WEM-KT 2018"]
[Site "Illertissen"]
[Date "2018.09.01"]
[Round "8"]
[White "Klaiss, Thomas"]
[Black "Hermann, Tobias"]
[Result "1/2-1/2"]
[ECO "E14"]
[WhiteElo "2021"]
[BlackElo "2002"]
[Annotator "NA RC"]
[PlyCount "149"]
[EventDate "2018.08.25"]
[EventType "tourn"]
[EventCountry "GER"]
[SourceTitle "playchess.com"]
[Source "ChessBase"]
[SourceQuality "1"]
[TimeControl "40/6000+30:3000+30"]

1. Nf3 {[%emt 0:09:47]} Nf6 {[%emt 0:09:42]} 2. b3 {[%emt 0:00:28]} b6 {[%emt 0:00:34]} 3. Bb2 {[%emt 0:00:08]} Bb7 {[%emt 0:00:01]} 4. e3 {[%emt 0:00:21]} e6 {[%emt 0:00:07]} 5. Be2 {[%emt 0:01:07]} Be7 {[%emt 0:00:05]} 6. O-O {[%emt 0:00:04]} O-O {[%emt 0:00:06]} 7. c4 {[%emt 0:00:10]} d5 {[%emt 0:02:53]} 8. d4 {[%emt 0:02:38]} c5 {[%emt 0:00:16]} 9. Nc3 {[%emt 0:06:10]} Nbd7 {[%emt 0:00:22]} 10. Rc1 {[%emt 0:02:11]} Rc8 {[%emt 0:06:01] E14: Damenindisch (Zentralsystem)} 11. Ne5 {[%emt 0:02:38]} (11. cxd5 Nxd5 12. Nxd5 Bxd5 13. Bb5 Rc7 14. Qe2 Nf6 15. Rfd1 Qa8 16. dxc5 Rxc5 17. Rxc5 Bxc5 18. Bxf6 gxf6 19. Bc4 Bxf3 20. Qxf3 Qxf3 21. gxf3 {½-½ (39) Liu,Y (2479)-Xu,Y (2539) Shenzhen 2017}) 11... Nxe5 {[%emt 0:12:53]} 12. dxe5 {[%emt 0:00:08]} Ne4 {[%emt 0:00:08]} 13. cxd5 $146 {[%emt 0:05:01]} ({Vorgänger:} 13. Bf3 Nxc3 14. Bxc3 Qc7 15. cxd5 exd5 16. Bxd5 Rcd8 17. e4 Kh8 18. Qf3 {1-0 (40) Turk,T (1772)-Lescan,M (1958) Hum na Sutli 2010}) 13... Nxc3 {[%emt 0:00:38]} 14. Rxc3 {[%emt 0:00:42]} Bxd5 {[%emt 0:01:33]} 15. Ba6 {[%emt 0:00:43]} Rc7 {[%emt 0:06:57]} 16. Rd3 {[%emt 0:09:18]} Qa8 {[%emt 0:02:05]} 17. Qg4 {[%emt 0:01:05]} Be4 {[%emt 0:09:13]} 18. Rd2 {[%emt 0:02:55]} Rd8 {[%emt 0:03:42]} 19. Rfd1 {[%emt 0:00:15]} Rxd2 {[%emt 0:01:05]} 20. Rxd2 {[%emt 0:00:08]} Bc6 {[%emt 0:00:14]} 21. Bf1 {[%emt 0:05:03]} Rd7 {[%emt 0:01:57]} 22. Rd6 {[%emt 0:04:11]} Bxd6 {[%emt 0:01:27]} 23. exd6 {[%emt 0:00:05]} Qf8 {[%emt 0:00:08]} 24. Be5 {[%emt 0:00:48]} Rxd6 {[%emt 0:00:31]} 25. Bxd6 {[%emt 0:00:43]} Qxd6 {[%emt 0:00:01]} 26. Qe2 {[%emt 0:00:40]} b5 {[%emt 0:12:37]} 27. Qc2 {[%emt 0:00:18]} a6 {[%emt 0:06:41]} 28. h3 {[%emt 0:00:38]} g6 {[%emt 0:05:00]} 29. Be2 {[%emt 0:00:29]} f5 {[%emt 0:00:47]} 30. Qb2 {[%emt 0:03:01]} e5 {[%emt 0:01:02]} 31. Qc3 {[%emt 0:04:29]} Kg7 {[%emt 0:09:40]} 32. Qb2 {[%emt 0:02:45]} Kf6 {[%emt 0:01:54]} 33. Qc3 {[%emt 0:00:10]} Be4 {[%emt 0:09:52]} 34. Qa5 {[%emt 0:02:23]} Bd5 {[%emt 0:01:16]} 35. Qc3 {[%emt 0:03:39]} Ke6 {[%emt 0:01:01]} 36. Qc2 {[%emt 0:02:28]} Kd7 {[%emt 0:02:02]} 37. Qc3 {[%emt 0:01:04]} Qc7 {[%emt 0:01:13]} 38. Qd3 {[%emt 0:08:01]} Ke6 {[%emt 0:00:10]} 39. Qc3 {[%emt 0:00:09]} Qc6 {[%emt 0:00:33]} 40. f3 {[%emt 0:04:46]} h5 {[%emt 0:00:18]} 41. h4 {[%emt 0:51:00]} c4 {[%emt 0:24:39]} 42. b4 {[%emt 0:00:00]} Qb6 {[%emt 0:00:27]} 43. Kf1 {[%emt 0:00:00]} Bb7 {[%emt 0:01:32]} 44. g3 {[%emt 0:00:00]} Qd8 {[%emt 0:06:29]} 45. Kf2 {[%emt 0:00:00]} g5 {[%emt 0:03:42]} 46. hxg5 {[%emt 0:00:00]} Qxg5 {[%emt 0:00:32]} 47. f4 {[%emt 0:00:00]} Qf6 {[%emt 0:02:27]} 48. Bxh5 {[%emt 0:00:00]} exf4 {[%emt 0:00:13]} 49. Qxf6+ {[%emt 0:00:00]} Kxf6 {[%emt 0:00:01]} 50. exf4 {[%emt 0:00:00]} Be4 {[%emt 0:02:07]} 51. Ke3 {[%emt 0:00:00]} Bb1 {[%emt 0:02:46]} 52. a3 {[%emt 0:00:00]} Be4 {[%emt 0:04:42]} 53. Kd4 {[%emt 0:00:00]} Bc6 {[%emt 0:01:03]} 54. Bd1 {[%emt 0:00:00]} Ke6 {[%emt 0:01:54]} 55. Bc2 {[%emt 0:00:00]} Bf3 {[%emt 0:00:47]} 56. a4 {[%emt 0:00:00]} Bc6 {[%emt 0:02:58]} 57. axb5 {[%emt 0:00:00]} axb5 {[%emt 0:00:03]} 58. Bd1 {[%emt 0:01:27]} Kd6 {[%emt 0:01:22]} 59. g4 {[%emt 0:03:19]} fxg4 {[%emt 0:00:10]} 60. Bxg4 {[%emt 0:00:04]} Ke7 {[%emt 0:01:02]} 61. Ke5 {[%emt 0:02:25]} Be8 {[%emt 0:00:53]} 62. Bf5 {[%emt 0:02:21]} Bd7 {[%emt 0:01:11]} 63. Be4 {[%emt 0:00:44]} Bg4 {[%emt 0:00:51]} 64. f5 {[%emt 0:02:58]} Be2 {[%emt 0:00:48]} 65. f6+ {[%emt 0:04:40]} Kf8 {[%emt 0:00:12]} 66. Kd4 {[%emt 0:05:47]} Kf7 {[%emt 0:01:28]} 67. Bc6 {[%emt 0:00:06]} c3 {[%emt 0:01:07]} 68. Kxc3 {[%emt 0:00:18]} Kxf6 {[%emt 0:00:05]} 69. Kd4 {[%emt 0:00:15]} Ke7 $11 {[%emt 0:00:12]} 70. Kc5 {[%emt 0:00:03]} Kd8 {[%emt 0:00:25]} 71. Bxb5 {[%emt 0:00:26]} Bf3 {[%emt 0:00:06]} 72. Kb6 {[%emt 0:00:36]} Kc8 {[%emt 0:00:20]} 73. Ka7 {[%emt 0:00:43]} Kc7 {[%emt 0:00:01]} 74. Bc4 {[%emt 0:00:28]} Bc6 $1 {[%emt 0:00:01]} 75. b5 {[%emt 0:00:29]} 1/2-1/2

[Event "WEM-KT 2018"]
[Site "Illertissen"]
[Date "2018.09.01"]
[Round "8"]
[White "Handel, Oliver"]
[Black "Seidler, Ottmar"]
[Result "1-0"]
[ECO "C64"]
[WhiteElo "1839"]
[BlackElo "1706"]
[Annotator "NA"]
[PlyCount "61"]
[EventDate "2018.08.25"]
[EventType "tourn"]
[EventCountry "GER"]
[SourceTitle "playchess.com"]
[Source "ChessBase"]
[SourceQuality "1"]
[TimeControl "40/6000+30:3000+30"]

1. e4 {[%emt 0:09:34]} e5 {[%emt 0:09:40]} 2. Nf3 {[%emt 0:00:09]} Nc6 {[%emt 0:00:06]} 3. Bb5 {[%emt 0:00:06]} Bc5 {[%emt 0:00:19]} 4. O-O {[%emt 0:00:09]} d6 {[%emt 0:00:09]} 5. c3 {[%emt 0:00:40]} Bd7 {[%emt 0:00:12]} 6. d4 {[%emt 0:00:53]} exd4 {[%emt 0:00:19]} 7. cxd4 {[%emt 0:00:45]} Bb6 {[%emt 0:00:02]} 8. Re1 {[%emt 0:02:25]} Nge7 {[%emt 0:02:11]} 9. Nc3 {[%emt 0:02:30]} O-O {[%emt 0:00:33]} 10. Bg5 {[%emt 0:02:19]} f6 {[%emt 0:06:30]} 11. Bf4 {[%emt 0:09:48]} Ng6 {[%emt 0:02:34]} 12. Be3 {[%emt 0:01:34]} Nce7 {[%emt 0:01:30]} 13. Bc4+ {[%emt 0:04:30]} Kh8 {[%emt 0:07:16]} 14. h3 $16 {[%emt 0:04:06]} a6 {[%emt 0:04:04]} 15. Nh2 {[%emt 0:00:30]} c6 {[%emt 0:06:35]} 16. f4 {[%emt 0:01:47]} f5 {[%emt 0:04:59]} 17. e5 {[%emt 0:04:37]} dxe5 {[%emt 0:01:42]} 18. fxe5 {[%emt 0:01:30]} f4 {[%emt 0:03:07]} 19. Bf2 {[%emt 0:01:12]} Nf5 {[%emt 0:06:15]} 20. Nf3 {[%emt 0:02:19]} Ba7 {[%emt 0:08:27]} 21. Ne4 {[%emt 0:01:40]} b5 {[%emt 0:08:09]} 22. Bb3 {[%emt 0:01:54]} Qe7 {[%emt 0:01:41]} 23. Nfg5 {[%emt 0:02:55]} Rad8 {[%emt 0:12:03]} 24. Qh5 {[%emt 0:06:28]} Nh6 {[%emt 0:01:49]} 25. Nd6 {[%emt 0:02:11]} Be8 {[%emt 0:07:31]} 26. Nxe8 {[%emt 0:04:29]} Rdxe8 {[%emt 0:03:51]} 27. Rad1 {[%emt 0:05:27]} Rf5 {[%emt 0:02:59]} 28. h4 {[%emt 0:01:18]} f3 {[%emt 0:01:34]} 29. g3 {[%emt 0:02:04]} c5 {[%emt 0:04:44]} 30. Bc2 {[%emt 0:01:24]} Rxg5 {[%emt 0:02:40]} 31. hxg5 {[%emt 0:00:22]} 1-0